bitfinex-derivatives/quotes_ETHF0:USTF0_20260306
["timestamp","ask_amount","ask_price","bid_price","bid_amount"]
[1772806064976,17.07516073,2018.7,2017.9,16.71579235]
[1772806065178,17.07516073,2020.4,2018.9,16.71579235]
[1772806065376,17.07516073,2020.2,2019.1,16.71579235]
[1772806065572,17.07516073,2020.0,2018.8,16.71579235]
[1772806065777,17.07516073,2019.8,2018.9,16.71579235]
[1772806066175,17.07875077,2019.8,2018.9,16.71579235]
[1772806068184,17.07875077,2019.8,2018.5,16.71579235]
[1772806068185,17.07516073,2019.6,2018.5,16.71579235]
[1772806068376,0.24759,2019.5,2018.5,16.71579235]
[1772806068577,0.00359004,2019.8,2018.5,16.71579235]
[1772806068782,17.07875077,2019.8,2018.5,16.71579235]
[1772806069081,26.86075077,2019.8,2018.7,16.71579235]
[1772806069278,0.00359004,2019.8,2018.7,16.71579235]
[1772806070082,0.24757,2019.7,2018.7,16.71579235]
[1772806070679,0.00359004,2019.8,2018.7,16.71579235]
[1772806070879,0.24757,2019.7,2018.7,16.71579235]
[1772806071275,0.24762,2019.3,2018.8,16.71579235]
[1772806071482,17.32278073,2019.3,2018.5,16.71579235]
[1772806071882,0.24768,2018.9,2018.5,16.71579235]
[1772806072383,17.07516073,2019.3,2018.5,16.71579235]
[1772806072683,26.86516073,2019.3,2018.5,16.71579235]
[1772806073380,17.07516073,2019.2,2018.5,16.71579235]
[1772806073581,17.07516073,2019.2,2018.1,16.71579235]
[1772806073774,17.07516073,2019.0,2018.1,16.71579235]
[1772806074284,26.86916073,2019.0,2018.1,16.71579235]
[1772806075085,17.07516073,2019.0,2018.1,16.71579235]
[1772806075383,26.87116073,2019.0,2018.1,16.71579235]
[1772806075778,0.00359004,2019.8,2018.1,16.71579235]
[1772806075779,15.52299577,2019.3,2018.1,16.71579235]
[1772806075984,25.32099577,2019.2,2018.1,16.71579235]
[1772806076183,15.52299577,2019.2,2018.1,16.71579235]
[1772806076378,9.799,2019.1,2018.1,16.71579235]
[1772806077385,15.52299577,2019.2,2018.1,16.71579235]
[1772806077687,9.802,2019.1,2018.1,16.71579235]
[1772806078077,0.24759,2019.6,2018.1,16.71579235]
[1772806078078,25.32699577,2019.5,2018.1,16.71579235]
[1772806078387,15.77058577,2019.6,2018.3,16.46320384]
[1772806078587,9.805,2019.7,2018.5,16.46320384]
[1772806079183,9.805,2019.7,2018.4,15.236]
[1772806079184,25.33258581,2019.8,2018.7,16.46320384]
[1772806079488,9.80959004,2019.8,2018.7,16.46320384]
[1772806080287,25.33258581,2019.8,2018.7,16.46320384]
[1772806080487,15.52299577,2019.7,2018.9,16.46320384]
[1772806080685,9.80959004,2019.8,2018.9,16.46320384]
[1772806080885,0.00359004,2019.8,2018.9,16.46320384]
[1772806081185,0.00359004,2019.8,2019.1,16.46320384]
[1772806081784,15.66826782,2020.5,2019.1,16.46320384]
[1772806081989,15.66826782,2020.5,2019.3,16.34067178]
[1772806082189,25.48126782,2020.5,2019.4,16.34067178]
[1772806082892,25.48560916,2020.5,2019.4,16.34489144]
[1772806083089,15.66826782,2020.4,2019.4,16.34489144]
[1772806083687,9.816,2020.4,2019.4,16.34489144]
[1772806083890,25.48426782,2020.4,2019.4,16.34489144]
[1772806084094,15.91576782,2020.3,2019.4,16.34489144]
[1772806085389,15.66826782,2020.3,2019.4,16.34489144]
[1772806085588,15.66826782,2020.2,2019.4,16.34489144]
[1772806085985,15.66826782,2020.0,2019.4,16.34489144]
[1772806086191,15.66826782,2019.8,2019.0,16.34067178]
[1772806087194,15.66826782,2019.8,2019.0,16.34424961]
[1772806087395,25.49226782,2019.8,2019.0,16.34424961]
[1772806087901,9.824,2019.8,2019.0,16.34424961]
[1772806088098,15.91578782,2020.1,2019.0,16.34424961]
[1772806088299,9.827,2020.0,2019.0,16.34424961]
[1772806088504,15.91578782,2020.1,2019.0,16.34424961]
[1772806088697,9.827,2020.0,2019.0,16.34424961]
[1772806088893,15.66826782,2020.1,2019.0,16.34424961]
[1772806089095,9.829,2020.0,2019.0,16.34424961]
[1772806089500,15.66826782,2019.9,2019.0,16.34424961]
[1772806090001,9.831,2019.9,2019.0,16.34424961]
[1772806090202,0.24751,2020.2,2019.0,16.34424961]
[1772806090203,9.832,2020.0,2019.0,16.34424961]
[1772806090502,9.833,2020.3,2019.2,16.34067178]
[1772806090698,9.833,2020.3,2019.0,16.34424961]
[1772806090699,15.66826782,2020.0,2019.0,16.34424961]
[1772806090905,15.66826782,2019.4,2018.6,16.34067178]
[1772806091109,15.66826782,2019.3,2018.6,16.34067178]
[1772806091311,9.834,2019.4,2018.6,16.34067178]
[1772806091600,9.835,2019.3,2018.6,16.34067178]
[1772806092103,15.66826782,2019.5,2018.6,16.34431492]
[1772806092309,15.66826782,2019.6,2018.6,16.34431492]
[1772806093303,15.66826782,2020.0,2018.6,16.34431492]
[1772806093499,15.66826782,2020.0,2018.8,16.34067178]
[1772806093699,25.50926782,2019.9,2018.8,16.34067178]
[1772806093902,15.66826782,2020.4,2019.0,16.34067178]
[1772806094210,15.66826782,2020.1,2019.0,16.34067178]
[1772806094907,15.66826782,2020.4,2019.2,16.34067178]
[1772806096313,15.66826782,2020.0,2018.9,16.34067178]
[1772806096510,15.66826782,2019.6,2018.7,16.34067178]
[1772806096809,9.848,2019.5,2018.7,16.34067178]
[1772806097111,9.849,2019.5,2018.7,16.34067178]
[1772806097307,25.51726782,2019.5,2018.7,16.34067178]
[1772806097508,15.66826782,2019.5,2018.7,16.34067178]
[1772806097703,25.51926782,2019.5,2018.7,16.34067178]
[1772806097909,15.66826782,2019.8,2018.7,16.34067178]
[1772806098109,25.52026782,2019.7,2018.7,16.34067178]
[1772806098808,25.52226782,2019.6,2018.7,16.34067178]
[1772806099010,9.854,2019.5,2018.7,16.34067178]
[1772806099310,15.66826782,2019.5,2018.7,16.34067178]
[1772806099508,9.856,2019.4,2018.7,16.34067178]
[1772806099709,25.52426782,2019.4,2018.7,16.34067178]
[1772806100814,9.86,2019.3,2018.7,16.34067178]
[1772806101314,15.66826782,2019.3,2018.7,16.34067178]
[1772806101511,25.53026782,2019.3,2018.7,16.34067178]
[1772806102010,0.00434134,2020.5,2018.7,16.34067178]
[1772806102011,9.865,2019.7,2018.7,16.34067178]
[1772806102214,15.66826782,2019.5,2018.7,16.34067178]
[1772806102414,15.91586782,2019.5,2018.7,16.34067178]
[1772806102815,0.2476,2019.5,2018.7,16.34067178]
[1772806103214,15.91581782,2019.9,2018.7,16.34067178]
[1772806103415,9.87,2019.8,2018.7,16.34067178]
[1772806103615,9.87,2019.8,2018.9,16.34067178]
[1772806104519,10.12155,2019.9,2018.9,16.34067178]
[1772806104812,25.78981782,2019.9,2018.9,16.34067178]
[1772806106117,15.91576782,2020.3,2018.9,18.98776371]
[1772806106316,0.24752,2020.1,2019.1,16.34067178]
[1772806106613,0.24752,2020.1,2019.2,16.34067178]
[1772806107116,15.91578782,2020.1,2019.2,16.34067178]
[1772806108315,15.91578782,2020.1,2018.6,0.00364314]
[1772806108316,15.91578782,2020.1,2018.8,16.34067178]
[1772806109516,15.66826782,2019.6,2018.8,16.34067178]
[1772806109722,0.24757,2019.7,2018.6,16.34431492]
[1772806109723,15.66826782,2019.4,2018.6,16.34431492]
[1772806110220,15.66826782,2019.6,2018.6,16.34431492]
[1772806110419,9.889,2019.5,2018.6,16.34431492]
[1772806110619,15.66826782,2019.6,2018.6,16.34431492]
[1772806110820,9.89,2019.5,2018.6,16.34431492]
[1772806111010,15.66826782,2019.6,2018.6,16.34431492]
[1772806111210,9.891,2019.5,2018.6,16.34431492]
[1772806111416,15.66826782,2019.9,2018.7,16.34067178]
[1772806111615,25.56026782,2019.9,2018.7,16.34067178]
[1772806111822,15.93929057,2019.8,2018.7,16.34067178]
[1772806114120,15.93929057,2019.6,2018.7,16.34067178]
[1772806114327,16.18691057,2019.3,2018.7,16.34067178]
[1772806114525,25.83829057,2019.3,2018.7,16.34067178]
[1772806114727,15.93929057,2019.3,2018.7,16.34067178]
[1772806115126,15.93929057,2019.7,2018.7,16.34067178]
[1772806115329,15.93929057,2019.3,2018.6,0.00364314]
[1772806115524,16.18692057,2019.2,2018.1,14.82357133]
[1772806116627,16.18692057,2019.2,2018.1,14.82759313]
[1772806116831,15.93929057,2018.6,2018.1,0.0040218]
[1772806117030,15.93929057,2018.4,2017.8,14.82357133]
[1772806118129,15.93929057,2018.4,2017.8,14.82919846]
[1772806118832,15.93929057,2018.2,2017.3,14.82357133]
[1772806119131,15.93929057,2018.0,2017.3,14.82357133]
[1772806119531,15.93929057,2017.8,2016.9,14.82357133]
[1772806119725,15.93929057,2017.6,2016.9,14.82850923]
[1772806122229,16.18708057,2017.9,2016.9,14.82850923]
[1772806122431,9.93,2017.9,2016.9,14.82850923]
[1772806122626,15.93929057,2018.3,2016.9,14.82850923]
[1772806122830,9.931,2018.2,2017.2,14.82357133]
[1772806123026,0.24773,2018.5,2017.3,14.82357133]
[1772806123230,9.933,2018.5,2017.6,14.82357133]
[1772806123433,9.934,2018.5,2017.6,14.82357133]
[1772806124230,10.18915243,2018.6,2017.6,14.82357133]
[1772806124430,0.25215243,2018.6,2017.8,14.82357133]
[1772806124631,16.18709057,2017.9,2017.3,14.82357133]
[1772806124832,0.24786,2017.4,2017.1,14.82357133]
[1772806125131,0.24786,2017.4,2017.0,14.82357133]
[1772806125326,0.24794,2016.7,2015.7,14.82357133]
[1772806126231,22.77648878,2016.9,2015.7,14.82357133]
[1772806126431,12.80726587,2016.8,2015.7,14.82845074]
[1772806126627,0.00430318,2016.9,2015.9,14.82357133]
[1772806126829,0.00430318,2016.9,2016.0,14.82357133]
[1772806127034,12.80726587,2016.7,2015.7,0.00487941]
[1772806127334,12.80726587,2016.7,2013.9,14.82357133]
[1772806127335,12.9349302,2015.7,2013.9,14.82357133]
[1772806127527,2.64709193,2015.8,2013.9,14.82357133]
[1772806127528,12.9349302,2015.5,2013.9,14.82357133]
[1772806127728,12.9349302,2015.3,2013.9,14.82357133]
[1772806128032,12.9349302,2015.1,2013.9,14.82357133]
[1772806128226,12.9349302,2014.9,2013.9,0.00443403]
[1772806128431,12.9349302,2014.9,2013.7,15.47396815]
[1772806128432,12.9349302,2014.9,2013.7,0.65039682]
[1772806128632,12.90811039,2014.7,2013.2,14.82357133]
[1772806128933,12.44181212,2014.5,2012.6,14.82357133]
[1772806129134,12.44181212,2014.3,2012.6,14.82357133]
[1772806129539,12.44181212,2014.3,2012.6,14.82790346]
[1772806129838,12.51449198,2015.0,2012.8,14.82357133]
[1772806130041,12.51449198,2014.8,2012.8,14.82357133]
[1772806130240,12.51449198,2014.6,2013.0,14.82357133]
[1772806130540,12.50902261,2015.0,2013.3,14.82357133]
[1772806130839,0.00568311,2015.1,2013.7,14.82357133]
[1772806131139,12.51470572,2015.1,2013.9,14.82357133]
[1772806131337,9.958,2015.0,2013.9,14.82357133]
[1772806131530,22.07309699,2015.0,2013.9,14.82357133]
[1772806131731,0.00568311,2015.1,2013.9,14.82357133]
[1772806132241,12.1207801,2015.1,2013.9,14.82357133]
[1772806132435,0.24815,2015.0,2013.6,14.82357133]
[1772806132634,12.10960387,2014.9,2013.6,14.82357133]
[1772806133033,9.961,2014.8,2013.6,14.82357133]
[1772806133238,12.10960387,2014.9,2013.8,14.82357133]
[1772806133432,0.00568311,2015.1,2013.8,14.82357133]
[1772806134135,0.00568311,2015.1,2014.0,14.82357133]
[1772806134340,0.00568311,2015.1,2014.1,14.82357133]
[1772806134533,0.00568311,2015.1,2014.2,14.82357133]
[1772806137144,12.54396578,2015.0,2014.1,0.00448332]
[1772806138442,12.44416,2014.8,2014.1,0.00448332]
[1772806138638,0.00568311,2015.1,2014.1,15.80649202]
[1772806138944,0.00568311,2015.1,2013.4,15.8020087]
[1772806138945,0.24823,2014.4,2013.4,15.8020087]
[1772806139443,12.19188402,2014.8,2013.4,15.8020087]
[1772806139444,22.01488402,2014.8,2013.4,15.8020087]
[1772806139634,9.823,2014.8,2013.4,15.8020087]
[1772806140039,12.40059307,2015.0,2013.4,15.80638533]
[1772806140238,12.40059307,2015.0,2013.6,15.8020087]
[1772806140433,0.24816,2015.0,2013.6,15.8020087]
[1772806140644,0.24816,2015.0,2013.8,15.8020087]
[1772806141035,0.00568311,2015.1,2014.0,15.8020087]
[1772806141239,0.00568311,2015.1,2014.1,15.8020087]
[1772806141436,0.00568311,2015.1,2014.1,15.81045449]
[1772806141745,0.24808,2015.6,2014.1,15.81045449]
[1772806142546,12.33296944,2015.6,2014.1,15.81045449]
[1772806143237,12.33296944,2015.6,2014.1,15.8020087]
[1772806143238,0.24813,2015.2,2014.1,15.8020087]
[1772806143841,0.24813,2015.2,2014.3,15.86746002]
[1772806144746,0.24818,2014.8,2014.3,15.86746002]
[1772806144949,12.3684507,2014.8,2014.0,15.86746002]
[1772806145450,0.24818,2014.8,2014.0,15.86746002]
[1772806145653,9.879,2015.4,2014.0,15.86746002]
[1772806145845,11.98407725,2015.5,2014.0,15.86746002]
[1772806146045,21.86507725,2015.5,2014.0,15.86746002]
[1772806146248,21.86607725,2015.5,2014.0,15.86746002]
[1772806146441,12.24075324,2015.4,2014.0,15.86746002]
[1772806146748,0.2481,2015.4,2014.2,15.86746002]
[1772806147252,0.24816,2014.9,2014.2,15.86746002]
[1772806147853,0.24822,2014.4,2013.8,15.86746002]
[1772806148653,11.03803961,2015.0,2013.8,15.86746002]
[1772806148853,0.24816,2014.9,2013.8,15.86746002]
[1772806149856,0.24821,2014.5,2013.8,15.86746002]
[1772806150053,0.24826,2014.1,2013.5,15.86746002]
[1772806150249,0.25203196,2014.1,2013.5,15.86746002]
[1772806150649,11.78040202,2014.1,2013.4,0.00437663]
[1772806150847,0.25203196,2014.1,2013.4,0.00437663]
[1772806151052,11.78040202,2014.1,2013.4,0.00437663]
[1772806151344,0.24833,2013.6,2013.1,15.86746002]
[1772806151749,11.70086568,2013.6,2012.5,15.86746002]
[1772806151947,0.24845,2012.6,2011.6,15.86746002]
[1772806152146,17.17635615,2013.5,2011.6,15.86746002]
[1772806152352,0.24834,2013.4,2011.8,15.86746002]
[1772806152556,9.905,2013.3,2011.8,15.86746002]
[1772806152953,12.18812159,2013.4,2012.0,15.86746002]
[1772806153150,0.00603988,2013.5,2012.0,15.86746002]
[1772806153448,11.93202855,2013.5,2012.2,15.86746002]
[1772806154153,0.25437988,2013.5,2012.2,15.86746002]
[1772806154347,0.00603988,2013.5,2012.4,15.86746002]
[1772806154551,0.00603988,2013.5,2012.3,5.20400264]
[1772806154552,0.00603988,2013.5,2012.6,15.86746002]
[1772806154747,11.67764867,2014.1,2012.6,15.86746002]
[1772806154953,11.67764867,2014.1,2012.8,15.86746002]
[1772806155154,0.24825,2014.2,2012.8,15.86746002]
[1772806155348,11.94614881,2014.2,2013.0,15.86746002]
[1772806155557,11.94621881,2013.7,2012.7,15.86746002]
[1772806155751,11.95255422,2013.7,2012.7,15.86746002]
[1772806155952,11.69789881,2014.5,2012.7,15.86746002]
[1772806156157,0.24823,2014.3,2012.9,15.86746002]
[1772806156551,11.9362335,2014.3,2013.1,15.86746002]
[1772806157158,0.00544185,2014.3,2013.3,15.86746002]
[1772806157347,13.65814411,2014.3,2013.3,15.86746002]
[1772806158453,0.24826,2014.1,2013.3,15.86746002]
[1772806159458,13.64204137,2014.1,2013.3,15.86746002]
[1772806160556,13.64204137,2014.1,2013.1,0.0035845]
[1772806160757,13.68138065,2013.6,2013.1,0.0035845]
[1772806161052,13.68138065,2013.6,2011.9,12.7403891]
[1772806161053,0.24839,2013.1,2012.0,15.86746002]
[1772806161259,0.24839,2013.1,2011.2,0.24861]
[1772806161260,13.43305065,2013.2,2011.1,15.86746002]
[1772806161554,9.912,2013.1,2011.7,15.86746002]
[1772806161761,14.09002244,2013.3,2011.7,15.86746002]
[1772806161957,0.24843,2012.7,2011.7,15.86746002]
[1772806162156,0.25474046,2012.7,2011.7,15.87125565]
[1772806162357,14.08550292,2012.7,2011.7,15.87125565]
[1772806164668,0.24845,2012.5,2011.7,15.77125565]
[1772806166064,14.19445051,2012.5,2011.7,15.77125565]
[1772806166264,24.10745051,2012.5,2011.7,15.77125565]
[1772806166459,0.24848,2012.3,2011.7,0.00379563]
[1772806166965,0.24848,2012.3,2010.4,0.24871]
[1772806166966,0.24854,2011.8,2011.2,15.86746002]
[1772806167561,25.65237252,2011.8,2010.6,15.86746002]
[1772806167863,0.24853,2011.9,2010.9,15.86746002]
[1772806168162,9.914,2012.3,2011.1,15.86746002]
[1772806168356,15.49083252,2012.4,2011.1,15.86746002]
[1772806168559,0.24853,2011.9,2011.1,15.86746002]
[1772806170260,15.78078051,2011.9,2011.1,15.86746002]
[1772806170666,0.24859,2011.4,2010.8,15.86746002]
[1772806170863,15.53225051,2012.2,2010.8,15.86746002]
[1772806171063,0.24854,2011.9,2010.8,15.86746002]
[1772806171263,15.78079051,2011.9,2010.8,15.86746002]
[1772806171660,14.88244141,2011.7,2010.8,15.86746002]
[1772806171958,14.88244141,2011.7,2010.6,15.26596052]
[1772806172161,0.24855,2011.7,2010.6,15.26596052]
[1772806172562,24.79744141,2011.7,2010.6,15.26596052]
[1772806172760,9.915,2011.6,2010.6,15.26596052]
[1772806173063,14.88247141,2011.5,2010.6,15.26596052]
[1772806173467,14.63389141,2011.4,2010.6,15.26596052]
[1772806173767,0.2486,2011.3,2010.6,15.26596052]
[1772806174160,14.88242141,2011.9,2010.6,15.26596052]
[1772806174463,14.88242141,2011.9,2010.7,15.2608668]
[1772806174664,0.24853,2011.9,2010.8,15.2608668]
[1772806175068,0.24853,2011.9,2011.0,15.2608668]
[1772806175366,0.24859,2011.4,2010.7,15.2608668]
[1772806175559,13.21882179,2012.6,2010.7,15.2608668]
[1772806175764,13.46729179,2012.4,2011.1,15.2608668]
[1772806176061,0.24847,2012.4,2011.3,15.2608668]
[1772806176264,0.24847,2012.4,2011.3,30.4568668]
[1772806176466,0.24847,2012.4,2011.4,15.2608668]
[1772806177269,13.88660179,2012.4,2011.4,15.2608668]
[1772806177868,0.24847,2012.4,2011.4,15.2608668]
[1772806178959,0.24847,2012.4,2011.6,15.2608668]
[1772806179169,13.99191552,2012.7,2011.6,15.2608668]
[1772806179170,0.24853,2011.9,2011.6,15.2608668]
[1772806179564,13.98560506,2012.5,2011.6,15.2608668]
[1772806179767,0.00631046,2012.7,2011.6,15.2608668]
[1772806180368,0.24841,2012.9,2011.8,15.2608668]
[1772806180765,0.24841,2012.9,2012.0,15.2608668]
[1772806181071,0.24841,2012.9,2011.7,15.187]
[1772806181072,0.24834,2013.5,2012.2,15.2608668]
[1772806181262,0.25433624,2013.5,2012.2,15.26562573]
[1772806181467,0.25433624,2013.5,2012.4,15.2608668]
[1772806181671,14.82651916,2014.1,2012.6,15.2608668]
[1772806181868,0.24827,2014.1,2012.6,15.2608668]
[1772806182168,0.24827,2014.1,2012.8,15.1208668]
[1772806182372,0.24825,2014.2,2012.8,15.1208668]
[1772806182570,0.25210151,2014.2,2013.0,15.2608668]
[1772806182969,14.88599292,2014.2,2013.2,15.2608668]
[1772806183273,14.63774292,2014.2,2013.2,15.2608668]
[1772806183470,0.24826,2014.1,2013.2,15.2608668]
[1772806183674,14.88222141,2013.6,2012.6,15.2608668]
[1772806184270,0.24839,2013.1,2012.6,15.2608668]
[1772806185377,0.24837,2013.2,2012.6,15.2608668]
[1772806186583,14.88219141,2013.8,2012.6,15.2608668]
[1772806187180,0.2483,2013.8,2012.8,15.2608668]
[1772806187377,0.00385151,2014.2,2012.8,15.2608668]
[1772806187579,0.00385151,2014.2,2013.0,15.2608668]
[1772806188078,14.63389141,2013.5,2012.5,5.25426825]
[1772806188283,14.88231141,2012.9,2012.2,0.00475893]
[1772806188474,14.88231141,2012.9,2010.8,15.2608668]
[1772806188680,14.63389141,2012.3,2010.8,15.2608668]
[1772806188880,0.24849,2012.2,2010.9,15.2608668]
[1772806189183,0.24857,2011.6,2010.9,15.2608668]
[1772806189376,0.24857,2011.6,2010.9,15.26540426]
[1772806189580,0.25329172,2011.6,2010.9,15.26540426]
[1772806190483,0.00472172,2011.6,2010.9,15.26540426]
[1772806191081,0.00472172,2011.6,2010.9,15.23540426]
[1772806191283,0.24849,2012.2,2011.1,15.2608668]
[1772806191481,14.88238141,2012.2,2011.1,15.2608668]
[1772806192077,14.63389141,2011.5,2010.9,0.00453746]
[1772806192277,14.88248141,2011.4,2010.9,0.00453746]
[1772806192477,14.88248141,2011.4,2010.4,15.2608668]
[1772806193487,14.63389141,2009.8,2008.4,1.07857596]
[1772806193675,14.63389141,2009.8,2007.2,15.18476595]
[1772806193676,0.24901,2008.1,2007.2,12.30646788]
[1772806193979,14.63389141,2007.8,2006.2,15.2608668]
[1772806194279,0.24902,2007.9,2006.3,15.163]
[1772806194280,5.44542104,2007.7,2006.3,15.163]
[1772806194480,5.45106706,2007.7,2006.4,15.34756725]
[1772806194681,16.85516715,2008.8,2006.8,16.69580807]
[1772806194884,16.85516715,2008.8,2007.2,16.69580807]
[1772806195078,17.10397715,2009.6,2007.1,16.69580807]
[1772806195279,6.11845,2010.5,2007.4,16.69580807]
[1772806195280,16.85516715,2009.1,2007.4,16.69580807]
[1772806195482,16.85516715,2009.1,2007.4,16.32172807]
[1772806195681,16.85943472,2009.1,2007.4,16.32172807]
[1772806195982,16.85943472,2009.1,2007.6,16.69580807]
[1772806196179,16.85943472,2009.1,2007.8,16.69580807]
[1772806196380,0.24906,2007.6,2004.7,16.69580807]
[1772806196583,16.85516715,2006.6,2004.9,16.69580807]
[1772806196886,16.85516715,2006.6,2005.1,16.69580807]
[1772806197086,0.2492,2006.5,2005.1,16.69580807]
[1772806197281,5.78263699,2006.5,2005.4,16.32900807]
[1772806197477,0.00400086,2006.5,2005.3,16.69580807]
[1772806197780,16.85516715,2007.1,2005.8,16.69580807]
[1772806198180,9.773,2007.8,2005.8,5.47102368]
[1772806198181,16.85516715,2006.9,2005.8,5.47102368]
[1772806198487,16.85516715,2006.7,2005.8,5.47102368]
[1772806198885,0.00381454,2006.7,2006.0,16.69580807]
[1772806199081,16.85516715,2007.3,2006.0,16.69580807]
[1772806199287,16.85516715,2008.2,2006.2,16.69580807]
[1772806199481,0.249,2008.1,2006.2,16.69580807]
[1772806199681,0.249,2008.1,2006.1,5.77428573]
[1772806199682,16.85516715,2008.0,2006.3,27.91906771]
[1772806199881,0.2491,2007.3,2006.3,22.16683175]
[1772806200082,0.24912,2007.1,2005.9,16.69580807]
[1772806200293,16.85516715,2006.8,2005.4,16.69580807]
[1772806200487,16.85516715,2007.2,2005.4,16.69580807]
[1772806200688,16.85516715,2007.2,2005.5,10.82428226]
[1772806200894,16.85516715,2005.4,2003.8,16.69580807]
[1772806201189,16.85516715,2005.2,2003.4,16.69580807]
[1772806201384,5.4891963,2005.3,2003.8,16.69580807]
[1772806201587,17.03159162,2006.5,2004.0,16.69580807]
[1772806201888,17.03159162,2005.7,2004.2,17.25359571]
[1772806202090,17.03159162,2005.3,2004.2,17.25359571]
[1772806202290,17.03159162,2005.2,2004.3,22.9093011]
[1772806202584,0.00414602,2006.5,2004.4,17.25359571]
[1772806202585,17.03159162,2005.9,2004.4,17.25359571]
[1772806202793,17.03159162,2005.9,2004.5,17.25359571]
[1772806203184,17.03159162,2005.9,2004.6,5.65570539]
[1772806203384,17.03159162,2005.7,2004.6,5.65570539]
[1772806203589,17.03159162,2005.5,2004.1,17.25359571]
[1772806203790,17.03159162,2005.5,2004.2,17.25359571]
[1772806203984,17.03159162,2005.5,2004.3,22.9093011]
[1772806204190,17.03159162,2005.5,2004.3,17.25359571]
[1772806204386,17.03159162,2005.5,2004.4,22.9093011]
[1772806204589,17.03159162,2004.5,2001.7,17.25359571]
[1772806204892,17.03159162,2004.1,2002.7,17.25359571]
[1772806205289,17.03159162,2004.1,2002.2,0.08686742]
[1772806205290,17.03159162,2004.1,2002.8,24.00845628]
[1772806205487,17.03511297,2004.1,2002.8,17.25780681]
[1772806205696,17.03511297,2004.1,2003.0,1.90733712]
[1772806205697,17.03159162,2003.9,2003.0,1.90733712]
[1772806205897,17.03159162,2003.9,2003.1,6.75486057]
[1772806206296,17.03159162,2003.9,2002.8,0.0042111]
[1772806206490,0.00352135,2004.1,2002.8,0.0042111]
[1772806206491,17.03159162,2003.7,2002.8,0.0042111]
[1772806206691,17.03159162,2003.8,2002.9,6.75486057]
[1772806207394,17.03159162,2003.8,2002.9,8.66219769]
[1772806207689,17.03159162,2003.8,2002.5,0.12]
[1772806207890,17.03159162,2003.8,2002.6,6.75486057]
[1772806208195,17.03159162,2003.6,2002.5,0.12]
[1772806208391,17.03159162,2003.6,2002.6,6.75486057]
[1772806208787,17.03159162,2003.6,2002.6,6.75901677]
[1772806208991,17.03159162,2002.5,1999.5,17.25359571]
[1772806209295,17.03159162,2002.8,2001.3,17.25359571]
[1772806209499,17.03159162,2002.8,2001.5,17.25359571]
[1772806209698,23.78659162,2002.8,2001.6,17.37775191]
[1772806210000,17.03159162,2002.7,2001.7,17.37775191]
[1772806210302,6.75911412,2002.8,2001.9,17.25359571]
[1772806210598,17.03159162,2003.5,2002.1,20.84154414]
[1772806210799,17.03159162,2004.5,2002.1,20.84154414]
[1772806211097,17.03159162,2004.1,2002.3,17.25359571]
[1772806211401,17.03159162,2004.1,2002.2,6.9052655]
[1772806211402,17.03159162,2004.9,2003.2,17.25359571]
[1772806211600,17.03619739,2004.9,2003.4,17.25359571]
[1772806211798,17.03159162,2004.7,2003.4,17.25359571]
[1772806211997,17.03159162,2004.7,2003.5,18.63567019]
[1772806212204,0.00460577,2004.9,2003.5,17.25359571]
[1772806212401,0.00460577,2004.9,2003.9,17.25359571]
[1772806212603,0.00460577,2004.9,2004.1,17.25359571]
[1772806212804,17.03159162,2005.4,2004.5,17.25359571]
[1772806213003,17.03159162,2006.0,2004.6,18.63106442]
[1772806213302,17.03159162,2006.1,2004.7,18.51151399]
[1772806213600,0.24948,2004.2,2001.1,17.50346571]
[1772806213806,0.24953,2003.8,2002.4,17.25359571]
[1772806214004,17.03584055,2004.2,2002.6,17.25359571]
[1772806214202,17.03159162,2004.0,2002.6,17.25803164]
[1772806214406,17.03159162,2004.0,2002.7,0.11955043]
[1772806214601,0.00424893,2004.2,2002.7,0.11955043]
[1772806214602,0.00424893,2004.2,2002.8,17.25359571]
[1772806214806,17.03584055,2004.2,2003.0,17.25359571]
[1772806215101,17.03584055,2004.2,2003.1,1.90733712]
[1772806215303,0.24928,2005.9,2003.6,3.58794843]
[1772806215502,17.03159162,2005.8,2003.7,17.25359571]
[1772806215702,17.03159162,2005.6,2003.9,17.25359571]
[1772806215902,17.03159162,2005.6,2004.1,3.58794843]
[1772806216099,0.24932,2005.5,2004.6,17.25359571]
[1772806216303,0.25389877,2005.5,2004.6,17.25937528]
[1772806216501,0.25389877,2005.5,2004.9,1.90733712]
[1772806216702,0.25389877,2005.5,2004.7,0.11955043]
[1772806217107,0.25389877,2005.5,2004.8,1.90733712]
[1772806217309,17.28549039,2005.5,2004.7,0.11955043]
[1772806217605,17.03159162,2003.1,2000.4,0.24996]
[1772806217907,17.03159162,2001.7,2000.4,17.25359571]
[1772806218501,17.03535205,2001.7,2000.4,17.25957105]
[1772806218701,0.00376043,2001.7,2000.8,17.25359571]
[1772806218899,17.03159162,2002.5,2000.8,17.25359571]
[1772806219202,17.03159162,2002.5,2001.3,17.25359571]
[1772806219807,17.28130162,2002.4,2001.3,17.25359571]
[1772806220000,0.00360985,2002.4,2001.3,17.25359571]
[1772806220202,0.00360985,2002.4,2001.7,17.25359571]
[1772806220509,0.00360985,2002.4,2001.1,17.25359571]
[1772806220708,0.00360985,2002.4,2001.3,1.20645916]
[1772806220911,0.00360985,2002.4,2001.1,17.25359571]
[1772806220912,17.03520147,2002.4,2001.1,17.25359571]
[1772806221103,0.00360985,2002.4,2001.1,17.25359571]
[1772806221307,0.00360985,2002.4,2001.7,17.25359571]
[1772806221702,17.28119162,2003.3,2002.3,1.20645916]
[1772806221907,17.28119162,2003.3,2001.7,17.25359571]
[1772806222313,17.28121162,2003.1,2001.7,17.25359571]
[1772806222804,17.28552604,2003.1,2001.7,17.25843375]
[1772806223009,17.28552604,2003.1,2002.0,17.25359571]
[1772806223507,17.28552604,2003.1,2002.3,1.20645916]
[1772806223703,17.28552604,2003.1,2001.7,0.00483804]
[1772806223904,17.28552604,2003.1,2001.7,17.25843375]
[1772806224314,17.28130162,2002.5,2001.7,0.00483804]
[1772806224610,17.28130162,2002.5,2001.0,17.25359571]
[1772806224807,17.28137162,2001.9,2000.6,17.25359571]
[1772806225007,0.24978,2001.9,2000.6,17.25359571]
[1772806225211,0.24978,2001.9,2001.2,1.20645916]
[1772806225509,17.03159162,2002.3,2001.3,17.25359571]
[1772806225719,17.28128162,2002.6,2001.3,17.25359571]
[1772806226112,0.24969,2002.6,2001.3,17.25359571]
[1772806226410,0.00431442,2003.1,2002.5,17.25359571]
[1772806226715,0.24963,2003.0,2002.0,17.25359571]
[1772806226910,17.28122162,2003.0,2002.0,17.25359571]
[1772806227112,17.28122162,2003.0,2001.5,17.25359571]
[1772806227415,17.28130162,2002.4,2001.5,17.25359571]
[1772806228110,5.47687657,2003.0,2001.5,17.25359571]
[1772806228111,17.03159162,2002.8,2001.5,17.25359571]
[1772806228316,0.00431442,2003.1,2002.4,17.25359571]
[1772806228615,0.24956,2003.6,2002.4,17.25359571]
[1772806228913,0.24956,2003.6,2002.0,15.582]